Cogmind - Beta 15 @@@ ROGUE MODE // 2025.09.16 @ 22:35:24 Player: c4-BRK Result: Destroyed by G-50 Soldier with Heavy Laser Performance ------------- Evolutions (4) 2000 Regions Visited (4) 800 Robots Destroyed (10) 50 Value Destroyed (361) 361 Prototype IDs (8) 160 Alien Tech Used (0) 0 Bonus (414) 414 TOTAL SCORE: 3785 Bonus ------- Follower Combat Kills 114 Registered with UFD 300 Cogmind --------- Core Integrity 0/850 Matter 100/300 Energy 100/100 System Corruption 3% Temperature Cool (18) Movement Core (50) Location -6/Factory Parts ------- > --- POWER (2) -------- (None) > --- PROPULSION (4) --- (None) > --- UTILITY (6) ------ (None) > --- WEAPON (3) ------- (None) > --- INVENTORY (5) ---- Improved Ion Engine Improved Medium Treads Scrap Suit Peak State ------------ > --- POWER ------------ Fission Core Light Fission Core > --- PROPULSION ------- Spiked Treads Wheel Compact Wheel Overtuned Scrapsphere > --- UTILITY ---------- Scrap Suit Large Storage Unit Improved Targeting Computer Makeshift Light Armor Plating > --- WEAPON ----------- Particle Gun Overtuned Railgun Battle Cannon > --- INVENTORY -------- Improved Ion Engine Improved Medium Treads Scrap Suit [Rating: 45] Favorites ----------- Power Ion Engine Engine Ion Engine Power Core Light Fission Core Propulsion Wheel Treads Spiked Treads Wheel Wheel Utility Makeshift Light Armor Plating Device Scrap Suit Storage Small Storage Unit Processor Improved Targeting Computer Protection Makeshift Light Armor Plating Weapon Battle Cannon Energy Gun Particle Gun Ballistic Gun Overtuned Railgun Ballistic Cannon Battle Cannon Build | -11 -10 -10 -9 -6 ------- Run | Yrd Mat Sub Scr Fac Slots Evolved 8 | . . . . 8 Power 1 | . . . . 1 Propulsion 2 | . . . . 2 Utility 4 | . . . . 4 Weapon 1 | . . . . 1 Parts Attached 19 | 6 1 4 2 6 Power 4 | 1 . . 1 2 Engine 2 | 1 . . . 1 Core 2 | . . . 1 1 Reactor . | . . . . . Propulsion 4 | 2 . 1 . 1 Treads 1 | . . 1 . . Leg . | . . . . . Wheel 3 | 2 . . . 1 Hover . | . . . . . Flight . | . . . . . Utility 6 | 1 . 2 1 2 Device 2 | . . 1 . 1 Storage 2 | 1 . . 1 . Processor 1 | . . . . 1 Hackware . | . . . . . Protection 1 | . . 1 . . Artifact . | . . . . . Weapon 5 | 2 1 1 . 1 Energy Gun 2 | 1 1 . . . Energy Cannon . | . . . . . Ballistic Gun 2 | 1 . . . 1 Ballistic Cannon 1 | . . 1 . . Launcher . | . . . . . Special Weapon . | . . . . . Impact Weapon . | . . . . . Slashing Weapon . | . . . . . Piercing Weapon . | . . . . . Special Melee Weapon . | . . . . . Unidentified Prototypes . | . . . . . Parts Lost 14 | . . 1 . 13 Power 2 | . . . . 2 Propulsion 4 | . . . . 4 Utility 4 | . . . . 4 Weapon 4 | . . 1 . 3 Highest Loss Streak 13 | . . 1 . 13 To Critical Strikes . | . . . . . Average Backups 4 | 1 . 4 5 3 Power . | . . . . 1 Propulsion 1 | . . . 2 1 Utility 1 | . . . 1 1 Weapon 1 | . . 2 . . Tool/Special . | . . . . . Unused Backups 7 | . . 1 4 2 Power 1 | . . . 1 . Propulsion 3 | . . 1 1 1 Utility 1 | . . . . 1 Weapon 2 | . . . 2 . Tool/Special . | . . . . . Average Slot Usage (%) 95 | . 85 95 100 62 Engine 7 | . 14 14 4 . Core 5 | . . . 9 8 Treads 8 | . . 1 14 4 Wheel 19 | . 28 26 14 14 Storage 13 | . 14 14 14 5 Protection 10 | . . 8 14 5 Energy Gun 14 | . 19 16 14 4 Ballistic Cannon 11 | . . 11 14 4 Peak Build Rating 45 | 6 7 14 21 45 Average Rating 14 | 3 6 10 17 32 On Entrance 9 | . 6 7 14 20 Naked Turns 24 | . . . . 24 Heaviest Build 57 | 13 15 20 37 57 Greatest Support 34 | 26 26 26 10 34 Greatest Overweight (x) 4 | 1 . 1 3 4 Average Overweight (x) 1 | . . . 1 1 Largest Inventory Capacity 15 | 8 8 8 15 15 Average Capacity 9 | 7 8 8 10 13 Most Carried 11 | 5 1 8 11 10 Average Carried 5 | 1 . 4 6 4 Final Capacity 15 | 8 8 8 15 5 Final Carried 10 | . 1 8 10 4 Class Distribution -------------------- 97% | Mutant Dominant Class ---------------- Mutant | -10/Materials Mutant | -10/Subcaves Mutant | -9/Scraptown Derelict-Gunner | -6/Factory Resources | -11 -10 -10 -9 -6 ----------- Run | Yrd Mat Sub Scr Fac Matter Collected 396 | 187 53 136 20 . Remotely . | . . . . . Salvage Created 337 | . 96 75 . 166 Parts 21 | . 5 11 . 5 Haulers Intercepted . | . . . . . Recyclers Shooed . | . . . . . Parts Field Recycled . | . . . . . Retrieved Matter . | . . . . . Parts Self-Destructed 5 | . . 5 . . Prevented 1 | . . 1 . . Kills | -11 -10 -10 -9 -6 ------- Run | Yrd Mat Sub Scr Fac Combat Hostiles Destroyed 10 | . 2 5 . 3 Guns 5 | . 2 1 . 2 Cannons 3 | . . 2 . 1 AOE 2 | . . 2 . . Classes Destroyed 3 | . 1 2 . . Swarmer 4 | . . 4 . . Grunt 5 | . 2 . . 3 Subdweller 1 | . . 1 . . Best Kill Streak 4 | . 2 4 . 2 Combat Bots Only 4 | . 2 4 . 2 Max Kills in Single Turn 2 | . 1 2 . 1 Gunslinging . | . . . . . Exploded 2 | . . 2 . . Melee . | . . . . . Uniques/NPCs Destroyed . | . . . . . Combat | -11 -10 -10 -9 -6 -------- Run | Yrd Mat Sub Scr Fac Hostile Shots Fired 227 | . 7 39 . 181 Missed 55 | . 2 17 . 36 Hits 172 | . 5 22 . 145 Projectile 172 | . 5 22 . 145 AOE 1 | . . 1 . . Critical Strikes 1 | . . 1 . . Damage Taken 1846 | . 69 234 . 1543 Core 920 | . 17 46 . 857 Absorbed by Shields . | . . . . . Core Remaining (%) 87 | 100 . . 74 . Volleys Fired 37 | . 6 11 . 20 Largest 3 | . 2 2 . 3 Hottest 138 | . 60 105 . 138 Shots Fired 79 | . 12 22 . 45 Gun 58 | . 12 12 . 34 Cannon 21 | . . 10 . 11 Launcher . | . . . . . Special . | . . . . . Kinetic 47 | . 6 10 . 31 Thermal 15 | . . 1 . 14 Explosive . | . . . . . Electromagnetic 17 | . 6 11 . . Robot Hit Streak 8 | . 5 4 . 8 Robot Miss Streak 3 | . 1 1 . 3 Penetration Max . | . . . . . Secondary Targets . | . . . . . Shots Hit Robots 49 | . 10 7 . 32 Core Hits 19 | . 4 6 . 9 Critical Kills . | . . . . . Critical Parts Destroyed 1 | . . . . 1 Critical Strikes 4 | . . . . 4 Burn 3 | . . . . 3 Destroy 1 | . . . . 1 Melee Attacks . | . . . . . Impact . | . . . . . Slashing . | . . . . . Piercing . | . . . . . Sneak Attacks . | . . . . . Combat Hostiles . | . . . . . Follow-up Attacks . | . . . . . Damage Inflicted 1091 | . 111 216 . 764 Guns 782 | . 111 41 . 630 Cannons 166 | . . 56 . 110 Explosions 119 | . . 119 . . Melee . | . . . . . Ramming 24 | . . . . 24 Kinetic 671 | . 29 56 . 586 Thermal 273 | . . 119 . 154 Explosive . | . . . . . Electromagnetic 123 | . 82 41 . . Impact . | . . . . . Slashing . | . . . . . Piercing . | . . . . . Highest Corruption 3 | . . . . 3 Average Corruption 3 | . . . . 3 Corruption Purged . | . . . . . Corruption Blocked . | . . . . . Overload Shots . | . . . . . Overflow Damage . | . . . . . Projectiles . | . . . . . Explosions . | . . . . . Melee . | . . . . . Knockbacks . | . . . . . Impact . | . . . . . Kinetic . | . . . . . Secondary . | . . . . . Self-Inflicted Damage 33 | . . 23 . 10 Shots 1 | . . 1 . . Rammed 10 | . . . . 10 Targets Rammed 10 | . . . . 10 Kicked . | . . . . . Crushed . | . . . . . Highest Temperature 670 | . 79 1 . 670 Average Temperature 362 | . 48 1 . 433 Received Heat Transfer 564 | . 39 72 . 453 Effects 47 | . . . . 47 Shutdowns 11 | . . . . 11 Energy Bleed 1 | . . . . 1 Interference 4 | . . . . 4 Matter Decay 4 | . . . . 4 Short Circuit 3 | . . . . 3 Damage (minor) 1 | . . . . 1 Damage (major) 21 | . . . . 21 Damage (core) 2 | . . . . 2 Siege Activations . | . . . . . Martial Activations . | . . . . . Shielding Activations . | . . . . . Robots Disrupted . | . . . . . Combat Hostiles . | . . . . . Robots Corrupted . | . . . . . Combat Hostiles . | . . . . . Parts Fried . | . . . . . Impact Corruptions . | . . . . . Robots Melted . | . . . . . Combat Hostiles . | . . . . . Parts Melted . | . . . . . Heat Transferred 642 | . . 50 . 592 Parts Sabotaged . | . . . . . Parts Stolen . | . . . . . Parts Stripped . | . . . . . Power Chain Reactions 1 | . . 1 . . Alert | -11 -10 -10 -9 -6 ------- Run | Yrd Mat Sub Scr Fac Maximum Alert Level . | . . . . . Low Security (%) 100 | 100 100 . . 100 Level 1 . | . . . . . Level 2 . | . . . . . Level 3 . | . . . . . Level 4 . | . . . . . Level 5 . | . . . . . High Security . | . . . . . Max Security . | . . . . . Peak Influence 132 | . 70 . . 132 Initial . | . . . . . Average 38 | . 35 . . 55 Influence Increases 502 | . 80 185 . 237 Destroy 0b10 Robot/C 240 | . 40 80 . 120 Destroy Leader 30 | . 10 . . 20 Allied During Kill 9 | . . . . 9 Successful Hack 5 | . . . . 5 Disable Machine 75 | . . . . 75 Destroy Structure 8 | . . . . 8 Lose Combat Pursuer 135 | . 30 105 . . Influence Decreases 490 | . 30 128 107 225 Entered New Map 132 | . . 25 107 . Time Decay 178 | . 30 93 . 55 Lost Part 140 | . . 10 . 130 Lost Ally 40 | . . . . 40 Squads Dispatched 6 | . . . . 6 Investigation 1 | . . . . 1 Extermination . | . . . . . Reinforcement 2 | . . . . 2 Assault . | . . . . . Garrison 3 | . . . . 3 Intercept . | . . . . . Searches Triggered . | . . . . . Construction Impeded . | . . . . . Haulers Reinforced 1 | . . . . 1 Active Scanning Responses . | . . . . . Cargo Convoy Interrupts . | . . . . . Stealth | -11 -10 -10 -9 -6 --------- Run | Yrd Mat Sub Scr Fac Distress Signals . | . . . . . Communications Jammed . | . . . . . Distress Signals . | . . . . . Times Spotted 28 | . 4 12 . 12 Peak Tracking Total 6 | . 2 6 . 5 Tactical Retreats 4 | . 1 3 . . Traps | -11 -10 -10 -9 -6 ------- Run | Yrd Mat Sub Scr Fac Traps Triggered . | . . . . . Indirectly . | . . . . . Trap Hack Attempts . | . . . . . Triggered . | . . . . . Disarmed . | . . . . . Reprogrammed . | . . . . . Reused . | . . . . . Traps Extracted . | . . . . . Installed . | . . . . . Triggered . | . . . . . Machines | -11 -10 -10 -9 -6 ---------- Run | Yrd Mat Sub Scr Fac Machines Disabled 5 | . . . . 5 Max in Single Turn 1 | . . . . 1 Machines Repaired . | . . . . . Machines Dismantled . | . . . . . Machines Sabotaged . | . . . . . Overloaded Fab Kills . | . . . . . Hacking | -11 -10 -10 -9 -6 --------- Run | Yrd Mat Sub Scr Fac Machines Accessed 9 | . . 2 5 2 Terminals 1 | . . . . 1 Fabricators . | . . . . . Repair Stations . | . . . . . Recycling Units . | . . . . . Scanalyzers . | . . . . . Garrison Access 1 | . . . . 1 Total Hacks 25 | . . 3 18 4 Successful 22 | . . 3 18 1 Failed 3 | . . . . 3 Catastrophic 1 | . . . . 1 Database Lockouts . | . . . . . Manual . | . . . . . Terminals 1 | . . . . 1 Fabricators . | . . . . . Repair Stations . | . . . . . Recycling Units . | . . . . . Scanalyzers . | . . . . . Garrison Access 3 | . . . . 3 Terminal Hacks 22 | . . 3 18 1 Record 18 | . . 1 17 . Open Door 1 | . . 1 . . Hauler Manifests 1 | . . . . 1 Proto ID Catalog 1 | . . . 1 . Release Object 1 | . . 1 . . Fabricator Hacks . | . . . . . Repair Station Hacks . | . . . . . Recycling Unit Hacks . | . . . . . Scanalyzer . | . . . . . Garrison Access Hacks . | . . . . . Unauthorized Hacks . | . . . . . Terminals . | . . . . . Fabricators . | . . . . . Repair Stations . | . . . . . Recycling Units . | . . . . . Scanalyzers . | . . . . . Garrison Access . | . . . . . Data Cores Recovered . | . . . . . Used . | . . . . . Hacking Detections 2 | . . . . 2 Full Trace Events 1 | . . . . 1 Feedback Events . | . . . . . Feedback Blocked . | . . . . . Robot Schematics Acquired . | . . . . . Robots Built . | . . . . . Authchips . | . . . . . Time . | . . . . . Total Robot Build Rating . | . . . . . Part Schematics Acquired . | . . . . . Parts Built . | . . . . . Authchips . | . . . . . Time . | . . . . . Total Part Build Rating . | . . . . . Parts Repaired . | . . . . . Time . | . . . . . Parts Recycled . | . . . . . Recycled Matter . | . . . . . Retrieved Matter . | . . . . . Retrieved Components . | . . . . . Parts Scanalyzed . | . . . . . Part Schematics Acquired . | . . . . . Parts Damaged . | . . . . . Bothacking | -11 -10 -10 -9 -6 ------------ Run | Yrd Mat Sub Scr Fac Used RIF Installer . | . . . . . Robots Hacked . | . . . . . Non-combat . | . . . . . Combat . | . . . . . Robot Hacks Applied . | . . . . . Relay Couplers Released . | . . . . . Fabnet Peak Effective % . | . . . . . Robots Rewired . | . . . . . Allies Hacked . | . . . . . Hacks Repelled . | . . . . . Allies | -11 -10 -10 -9 -6 -------- Run | Yrd Mat Sub Scr Fac Total Allies 2 | . . . 1 1 Largest Group 1 | . . . 1 1 Highest-Rated Group 37 | . . . 34 37 Highest-Rated Ally 37 | . . . 34 37 Total Orders . | . . . . . Ally Attacks 15 | . . . . 15 Total Damage 327 | . . . . 327 Kills 3 | . . . . 3 Allies Corrupted . | . . . . . Allies Melted 1 | . . . . 1 Intel | -11 -10 -10 -9 -6 ------- Run | Yrd Mat Sub Scr Fac Active Infowar (turns) 75 | . . 75 . . Optics 75 | . . 75 . . Robot Analysis Total . | . . . . . Derelict Logs Recovered 5 | . . 1 4 . Drone Launches . | . . . . . Drone Recoveries . | . . . . . Exploration | -11 -10 -10 -9 -6 ------------- Run | Yrd Mat Sub Scr Fac Turns Passed 2827 | 45 119 989 1541 133 Spaces Moved 2420 | 42 31 948 1354 45 Core 26 | 12 . . . 14 Treads . | . . . . . Legs . | . . . . . Wheels 2394 | 30 31 948 1354 31 Hover . | . . . . . Flight . | . . . . . Fastest Speed 50 | 50 90 90 95 50 Average Speed 100 | 80 90 90 108 92 Slowest Speed 140 | 100 90 95 125 140 Overloaded Moves . | . . . . . Propulsion Burnouts . | . . . . . Robots Hopped . | . . . . . Potential Cave-ins . | . . . . . Cave-ins Triggered . | . . . . . Exploration Rate (%) 24 | 3 4 43 69 2 Regions Visited 4 Branch Regions 2 Pre-discovered Areas 2 | . . 1 1 . Known Exits Taken . | . . . . . Unknown Exits Taken 4 | 1 1 1 1 . Scrap Searched 10 | . . 5 5 . Spaces Dug . | . . . . . Terrain Destroyed 14 | . . 5 . 9 Melee . | . . . . . Projectile 9 | . . . . 9 AOE 5 | . . 5 . . Terrain Rammed . | . . . . . Walls Destroyed . | . . . . . Machines Disabled . | . . . . . Actions | -11 -10 -10 -9 -6 --------- Run | Yrd Mat Sub Scr Fac Total 2751 | 52 110 1058 1428 103 Wait 225 | . 72 82 53 18 Move 2416 | 41 30 947 1353 45 Hop . | . . . . . Pick Up 28 | 5 1 10 10 2 Fast Attach 1 | 1 . . . . Attach 14 | 5 . 2 1 6 Detach 1 | . . . 1 . Swap 7 | . 1 3 2 1 Drop 11 | . . 2 8 1 Fire 37 | . 6 11 . 20 Melee . | . . . . . Ram 10 | . . . . 10 Kick . | . . . . . Crush . | . . . . . Escape Stasis . | . . . . . Rewire . | . . . . . Trap . | . . . . . Miscellaneous 1 | . . 1 . . Route ------- -11/Scrapyard -10/Materials -10/Subcaves (discovered 3 exits: [*Mat] / [*Rec] / *Scr) -9/Scraptown (discovered 2 exits: *Fac x2) -6/Factory (discovered 1 exit: Low) History --------- Turn | Location | Event 14 | -11/Scrapyard | Discovered new exit (range 15) 46 | -11/Scrapyard | Entered Materials 144 | -10/Materials | Discovered new exit (range 6) 165 | -10/Materials | Entered Subcaves 166 | -10/Subcaves | Approached by a straggling Scientist 304 | -10/Subcaves | Build established: Mutant 354 | -10/Subcaves | Shifting Twisted Machinery released Sub. Laser 358 | -10/Subcaves | Shifting Twisted Machinery released Battle Cannon 495 | -10/Subcaves | Scientist uncovered a shortcut to Scraptown 545 | -10/Subcaves | Shifting Twisted Machinery released Mak. Light Armor Plating 552 | -10/Subcaves | Shifting Twisted Machinery released Flamer 615 | -10/Subcaves | A swath of the cavern ceiling suddenly collapsed 709 | -10/Subcaves | Discovered new exit (range 12) 817 | -10/Subcaves | Learned location of Mines (-8) 826 | -10/Subcaves | Released subatomizers from SUBCON Basin 933 | -10/Subcaves | Discovered new exit (range 11) 1069 | -10/Subcaves | Disturbed a concealed Subdweller 1154 | -10/Subcaves | Entered Scraptown 1192 | -9/Scraptown | Heard Great Nut preacher, LISTEN AND RECITE! 1202 | -9/Scraptown | Learned location of Extension (-5) 1243 | -9/Scraptown | Visited Junk Repository 1269 | -9/Scraptown | Visited Comm Corps 1307 | -9/Scraptown | Visited Assassins FH 1337 | -9/Scraptown | Scanned Subdweller tech in exchange for log data 1340 | -9/Scraptown | Learned Factory emergency access door positions 1341 | -9/Scraptown | Learned Factory stockpile data 1342 | -9/Scraptown | Learned Research terminal intel 1362 | -9/Scraptown | Discovered new exit (range 5) 1506 | -9/Scraptown | Visited Cyclists 1528 | -9/Scraptown | Visited UFD Registry 1528 | -9/Scraptown | Registered with UFD as "Zerodome" 1547 | -9/Scraptown | Entered Cyclist Reading Room 1593 | -9/Scraptown | Visited Junk Repository 1713 | -9/Scraptown | Visited The Evicted 1776 | -9/Scraptown | Visited Curators Association 1814 | -9/Scraptown | Visited Abandonware Association 1830 | -9/Scraptown | Learned abandonware demo "KABOOM.EXE" 1859 | -9/Scraptown | Visited Research Penetration Think Tank 1888 | -9/Scraptown | Visited Science Testing Area 1916 | -9/Scraptown | Visited DA-N13 Charitable Foundation 1926 | -9/Scraptown | Found DCF Scrap (28 items) 1960 | -9/Scraptown | Visited A0-MCA Data Center 1979 | -9/Scraptown | Visited Science Guys 2024 | -9/Scraptown | Visited Botcube Research 2042 | -9/Scraptown | Visited Scrapoid Research Area 2071 | -9/Scraptown | Visited Modified Component R&D 2213 | -9/Scraptown | Delivered Scrap Shield to a Scientist 2456 | -9/Scraptown | Found Scrap Suit 2458 | -9/Scraptown | Found Scrap Suit 2546 | -9/Scraptown | Found Botcube 2624 | -9/Scraptown | Botcube activated 2636 | -9/Scraptown | Botcube completed mutation into wheeled form, armed with 2 guns. 2688 | -9/Scraptown | Discovered new exit (range 5) 2695 | -9/Scraptown | Entered Factory 2695 | -6/Factory | Accompanied by 1 ally 2695 | -6/Factory | Evolved 8 slots: Power x1, Propulsion x2, Utility x4, Weapon x1 2696 | -6/Factory | Identified exit to Lower Caves 2808 | -6/Factory | Core integrity fell below 50% 2810 | -6/Factory | Found Botcube 2813 | -6/Factory | Botcube activated 2821 | -6/Factory | Botcube completed mutation into legged form, armed with 1 gun. 2827 | -6/Factory | Core integrity fell below 20% 2828 | -6/Factory | Destroyed by G-50 Soldier with Heavy Laser Last Messages --------------- F002. Dispatching Investigation squad. ALERT: Security rotation in progress. O-16 Technician: "IFF HANDSHAKE FAILED. SECURING TERMINAL." Acquired Botcube. Dropped Botcube. Botcube begins transforming into Mutated Botcube. O-16 Technician uses terminal to summon reinforcements. ALERT: Hostiles spotted, dispatching reinforcements to Terminal F001. O-16 Technician locks terminal. Botcube completes transformation. Slammed into Y-54 Guardian. Mutated Botcube heat short circuits Carbon-fiber Leg. Mutated Botcube critical meltdown. Slammed into G-50 Soldier. Slammed into Y-54 Guardian. Map ----- +----------------------------------------------------+ | ?????????????????????????????????????????????????? | | ?????????????????????????????????????????????????? | | ?????????????????????????????????????????????????? | | ?????????????????????????????????????????????????? | | ?????????????????????????????????????????]???????? | | ?????????????????????????????????????????????????? | | ?????????????????????????????????????????????????? | | ?????????????????????????????????????????????????? | | ??????????????????????????????? ?????????????????? | | ?????????????????????????????? ?????????????????? | | ?????????????????????????????? ?????????????????? | | ?????????????????????????????? """"??????????????? | | ?????????????????????????????? """"??????????????? | | ????????????? ????????????? ??????????????? | | ???????????## ????????+??? ???????????????? | | ???????????? =*! !?????????? ""???????????????? | | ??????????????=*! ????????? ""???????????????? | | ??????????????**! ??????? "????????????????? | | ????????????????? ?????? "????????????????? | | ??????????????#####+#####???% ????????????????? | | ??????????????# %* ####+#######?????????????? | | ??????????????# ! Y% % # ##????????????? | | ??????????????# % ! !=##??????????????? | | ??????????????# """" ""G""%=###?????????????? | | ??????????????# """"""g&g" " !* + ????????????? | | ??????????????# """""" @Y" " u### ????????? | | ??????????????# """"" g% #???? +??????? | | ??????????????# #??????? #??????? | | ??????????????# ##??????????????? | | ??????????????# ????????????? | | ??????????????# o ????????? | | ??????????????# T ??????? | | ??????????????# ???????? | | ??????????????# """ " "" """" """ """???????? | | ??????????????# "" " " "" """" """" ""?????!??? | | ??????????????# " "" " "" """" """? ""????????? | | ??????????????# """" " "" """? ""?????????????? | | ??????????????# """" " "" "??? "??????????????? | | ??????????????# """" " ?" "????"??????????????? | | ??????????????# ? ???????????????????? | | ??????????????# ? ?? ???????????????????? | | ??????????????#########?????##???????????????????? | | ?????????????????????????????????????????????????? | | ???????????????????????????????????????!?????!???? | | ?????????????????????????????????????????????????? | | ?????????????????????????????????????????????????? | | ?????????????????????????????????????????????????? | | ?????????????????????????????????????????????????? | | ?????????????????????????????????????????????????? | | ?????????????????????????????????????????????????? | +----------------------------------------------------+ Best States ------------- Heat Dissipation 37 Energy Generation 31 Energy Capacity 370 Matter Stores 300 Matter Capacity 300 Sight Range 21 Terrain Scan Density 10 Armor Coverage 100 Evasion (%) 50 Targeting Accuracy 6 Item Schematics ----------------- None Robot Schematics ------------------ None Fabricated ------------ Nothing Repaired ---------- Nothing Alien Tech Used ----------------- None Achievements -------------- None Challenges ------------ None Game ------ Seed TransportCombatWell Manual? 0 Play Time 00:28:52 Cumulative 22.0 hours Start 2025.09.16 @ 21:59:50 End 2025.09.16 @ 22:35:24 Sessions 1 Manual Loads 0 Difficulty Rogue Special Mode None Game No. 29 Rogue 8 Adventurer 21 Explorer 0 Win Type - Total 1 Types 0/0/0/0/0/0/0/1/0/0 Lore% 47 Gallery% 31 Achievement% 37 Wizard Run 0 Options --------- Layout 1 ASCII 0 Keyboard 0 Movement Mouse Keybinds 0 Fullscreen 2 Font 24/Smallcaps Map View 50x35 Zoom Use 0% Tactical HUD 0 Map Filters NONE Filters NONE Steam 1 RUN: acbc38b2-161b-4708-a9df-56c1e65935d3